Cogmind - Beta 9.1 @@@ ROGUE MODE // 2019.11.02 @ 18:48:00 Player: Suslik Result: Self-destructed Performance ------------- Evolutions (2) 1000 Regions Visited (5) 1000 Robots Destroyed (55) 275 Value Destroyed (1147) 1147 Prototype IDs (1) 20 Alien Tech Used (0) 0 Bonus (0) 0 TOTAL SCORE: 3442 Bonus ------- None Cogmind --------- Core Integrity 127/550 Matter 169/300 Energy 125/125 System Corruption 0% Temperature Cool (0) Location -8/Materials Parts ------- Power (1) Light Ion Engine Propulsion (2) Aluminum Leg Utility (5) Small Storage Unit High-capacity Storage Unit High-capacity Storage Unit High-capacity Storage Unit Weapon (3) Light Assault Rifle Ripper Inventory (30) Light Ion Engine Large Storage Unit Large Storage Unit Large Storage Unit High-capacity Matter Pod (9) Experimental Sensor Array Datajack Welding Torch Mining Claw Peak State ------------ Power (None) Propulsion Aluminum Leg Wheel Utility Small Storage Unit High-capacity Storage Unit High-capacity Storage Unit High-capacity Storage Unit Weapon Gauss Rifle Ripper Inventory Light Ion Engine Large Storage Unit Large Storage Unit Large Storage Unit High-capacity Matter Pod Experimental Sensor Array Datajack Mining Claw [Rating: 15] Favorites ----------- Power Light Ion Engine Engine Light Ion Engine Propulsion Light Treads Treads Light Treads Leg Aluminum Leg Wheel Compact Wheel Utility Large Storage Unit Device Experimental Sensor Array Storage Large Storage Unit Weapon Light Cannon Energy Gun Shock Rifle Energy Cannon Beam Cannon Ballistic Gun Light Assault Rifle Ballistic Cannon Light Cannon Launcher Grenade Launcher Slashing Weapon Mining Claw Special Melee Weapon Datajack Build | -11 -10 -10 -10 -9 -8 ------- Run | Scr Mat Min Exi Min Mat Slots Evolved 4 | . . . . . 4 Power . | . . . . . . Propulsion . | . . . . . . Utility 3 | . . . . . 3 Weapon 1 | . . . . . 1 Parts Attached 53 | . 23 8 2 3 17 Power 2 | . . . . 1 1 Engine 2 | . . . . 1 1 Core . | . . . . . . Reactor . | . . . . . . Propulsion 8 | . 4 1 . . 3 Treads 4 | . 4 . . . . Leg 2 | . . . . . 2 Wheel 2 | . . 1 . . 1 Hover . | . . . . . . Flight . | . . . . . . Utility 7 | . 2 . 2 . 3 Device 1 | . . . . . 1 Storage 6 | . 2 . 2 . 2 Processor . | . . . . . . Hackware . | . . . . . . Protection . | . . . . . . Artifact . | . . . . . . Weapon 36 | . 17 7 . 2 10 Energy Gun 4 | . . . . . 4 Energy Cannon 1 | . . . . . 1 Ballistic Gun 2 | . . . . . 2 Ballistic Cannon 14 | . 9 4 . 1 . Launcher 4 | . 1 1 . 1 1 Special Weapon . | . . . . . . Impact Weapon . | . . . . . . Slashing Weapon 10 | . 6 2 . . 2 Piercing Weapon . | . . . . . . Special Melee Weapon 1 | . 1 . . . . Unidentified Prototypes 1 | . . . . . 1 Parts Lost 16 | . . 3 . 1 12 Power 2 | . . . . 1 1 Propulsion 5 | . . 2 . . 3 Utility . | . . . . . . Weapon 9 | . . 1 . . 8 Highest Loss Streak 4 | . . 1 . 1 4 Average Slot Usage (%) 86 | . 92 99 85 85 62 Engine 12 | . 14 14 14 14 6 Treads 15 | . 28 20 . . . Wheel 4 | . . 6 14 14 2 Storage 26 | . 20 28 28 28 36 Energy Gun 2 | . 3 . . . 5 Ballistic Cannon 20 | . 22 23 28 28 6 Slashing Weapon 2 | . 2 3 . . 2 Naked Turns . | . . . . . . Heaviest Build 114 | 10 41 41 73 75 114 Greatest Support 40 | 20 40 40 16 16 16 Greatest Overweight (x) 36 | . 1 2 4 4 36 Average Overweight (x) 2 | . . 1 2 4 11 Largest Inventory Capacity 30 | . 16 16 20 20 30 Average Capacity 17 | . 10 16 17 20 29 Most Carried 16 | . 9 11 15 16 14 Average Carried 9 | . 6 9 12 15 10 Final Capacity 30 | 6 16 16 20 20 30 Final Carried 15 | 6 9 11 15 15 9 Class Distribution -------------------- 66% | Mutant 30% | Hauler-Mutant 3% | Hauler-Gunner Dominant Class ---------------- Mutant | -10/Materials Mutant | -10/Mines Mutant | -10/Exiles Hauler-Mutant | -9/Mines Hauler-Mutant | -8/Materials Resources | -11 -10 -10 -10 -9 -8 ----------- Run | Scr Mat Min Exi Min Mat Matter Collected 1315 | 200 567 299 . 30 219 Remotely . | . . . . . . Salvage Created 1196 | . 671 249 . 30 246 Parts 102 | . 56 23 . 5 18 Haulers Intercepted 2 | . 2 . . . . Recyclers Shooed 1 | . . . . . 1 Parts Field Recycled . | . . . . . . Retrieved Matter . | . . . . . . Parts Self-Destructed . | . . . . . . Prevented . | . . . . . . Kills | -11 -10 -10 -10 -9 -8 ------- Run | Scr Mat Min Exi Min Mat Combat Hostiles Destroyed 44 | . 20 11 . 5 8 Melee 3 | . . 1 . . 2 Guns 6 | . . . . . 6 Cannons 27 | . 17 8 . 2 . AOE 8 | . 3 2 . 3 . Classes Destroyed 10 | . 8 1 . . 1 Worker 2 | . 1 1 . . . Builder 3 | . 2 . . . 1 Hauler 2 | . 2 . . . . Recycler 1 | . 1 . . . . Operator 1 | . 1 . . . . Watcher 2 | . 2 . . . . Swarmer 20 | . 8 3 . 5 4 Grunt 20 | . 12 6 . . 2 Hunter 2 | . . . . . 2 Assembled 2 | . . 2 . . . Best Kill Streak 6 | . 6 4 . 3 3 Combat Bots Only 5 | . 5 4 . 3 3 Max Kills in Single Turn 3 | . 2 2 . 3 1 Gunslinging . | . . . . . . Exploded 3 | . 2 2 . 3 . Melee 1 | . . 1 . . 1 Uniques/NPCs Destroyed . | . . . . . . Combat | -11 -10 -10 -10 -9 -8 -------- Run | Scr Mat Min Exi Min Mat Damage Taken 2647 | . 625 298 . 93 1631 Core 585 | . 96 35 . 31 423 Absorbed by Shields . | . . . . . . Core Remaining (%) 67 | 100 . . . 35 . Volleys Fired 113 | . 53 23 . 4 33 Largest 3 | . 2 2 . 2 3 Hottest 120 | . 90 70 . 70 120 Shots Fired 206 | . 104 44 . 6 52 Gun 32 | . 4 . . . 28 Cannon 167 | . 98 43 . 4 22 Launcher 7 | . 2 1 . 2 2 Special . | . . . . . . Kinetic 171 | . 98 43 . 4 26 Thermal 22 | . 4 . . . 18 Explosive 7 | . 2 1 . 2 2 Electromagnetic 6 | . . . . . 6 Robot Hit Streak 13 | . 13 4 . 2 11 Robot Miss Streak 6 | . 6 4 . 2 2 Penetration Max . | . . . . . . Secondary Targets . | . . . . . . Shots Hit Robots 130 | . 58 23 . 2 47 Core Hits 67 | . 30 14 . 5 18 Critical Hits 3 | . 1 1 . . 1 Critical Kills . | . . . . . . Critical Parts Destroyed 3 | . 1 1 . . 1 Melee Attacks 41 | . 22 7 . . 12 Impact . | . . . . . . Slashing 41 | . 22 7 . . 12 Piercing . | . . . . . . Sneak Attacks 2 | . 1 1 . . . Combat Hostiles . | . . . . . . Follow-up Attacks . | . . . . . . Damage Inflicted 3092 | . 1246 584 . 295 967 Guns 412 | . 36 . . . 376 Cannons 1558 | . 899 435 . 34 190 Explosions 627 | . 216 68 . 261 82 Melee 487 | . 95 73 . . 319 Ramming 8 | . . 8 . . . Kinetic 1667 | . 899 435 . 34 299 Thermal 251 | . 36 . . . 215 Explosive 627 | . 216 68 . 261 82 Electromagnetic 52 | . . . . . 52 Impact . | . . . . . . Slashing 487 | . 95 73 . . 319 Piercing . | . . . . . . Highest Corruption 3 | . . 3 3 3 . Average Corruption 3 | . . 3 3 3 . Corruption Purged . | . . . . . . Effects 16 | . . 7 3 6 . Message Errors 4 | . . 1 1 2 . Matter Fused 6 | . . 3 2 1 . Heat Flow Errors 2 | . . . . 2 . Energy Discharges 2 | . . 2 . . . Data Loss (minor) 2 | . . 1 . 1 . Overload Shots . | . . . . . . Overflow Damage 65 | . . 2 . . 63 Projectiles 2 | . . 2 . . . Explosions 4 | . . . . . 4 Melee 59 | . . . . . 59 Knockbacks 22 | . 14 5 . . 3 Impact . | . . . . . . Kinetic 19 | . 12 4 . . 3 Secondary 3 | . 2 1 . . . Self-Inflicted Damage 74 | . 12 22 . . 40 Shots 5 | . 2 1 . . 2 Rammed 2 | . . 2 . . . Targets Rammed 3 | . . 3 . . . Kicked . | . . . . . . Crushed 1 | . . 1 . . . Highest Temperature 277 | . 108 81 . 277 76 Average Temperature 41 | . 39 26 . 104 32 Received Heat Transfer 676 | . 102 115 . . 459 Siege Activations . | . . . . . . Robots Corrupted . | . . . . . . Combat Hostiles . | . . . . . . Parts Fried . | . . . . . . Impact Corruptions . | . . . . . . Robots Melted . | . . . . . . Combat Hostiles . | . . . . . . Parts Melted . | . . . . . . Heat Transferred 571 | . 99 . . . 472 Parts Sabotaged . | . . . . . . Parts Stolen . | . . . . . . Parts Stripped . | . . . . . . Power Chain Reactions . | . . . . . . Missiles Intercepted . | . . . . . . Alert | -11 -10 -10 -10 -9 -8 ------- Run | Scr Mat Min Exi Min Mat Peak Influence 383 | . 383 323 . 110 158 Average Influence 153 | . 196 193 . 46 78 Maximum Alert Level 1 | . 1 1 . . . Low Security (%) 68 | . . . . . . Level 1 31 | . . . . . . Level 2 . | . . . . . . Level 3 . | . . . . . . Level 4 . | . . . . . . Level 5 . | . . . . . . High Security . | . . . . . . Max Security . | . . . . . . Squads Dispatched 6 | . 4 . . . 2 Investigation 4 | . 3 . . . 1 Extermination . | . . . . . . Reinforcement 2 | . 1 . . . 1 Assault . | . . . . . . Garrison . | . . . . . . Intercept . | . . . . . . Construction Impeded . | . . . . . . Haulers Reinforced . | . . . . . . Stealth | -11 -10 -10 -10 -9 -8 --------- Run | Scr Mat Min Exi Min Mat Distress Signals 4 | . 2 . . . 2 Communications Jammed . | . . . . . . Distress Signals . | . . . . . . Times Spotted 76 | . 33 13 . 6 24 Peak Tracking Total 8 | . 8 3 . 3 8 Tactical Retreats 8 | . 1 4 . 1 2 Traps | -11 -10 -10 -10 -9 -8 ------- Run | Scr Mat Min Exi Min Mat Traps Triggered 1 | . 1 . . . . Indirectly . | . . . . . . Trap Hack Attempts 3 | . 3 . . . . Triggered . | . . . . . . Disarmed 1 | . 1 . . . . Reprogrammed . | . . . . . . Reused . | . . . . . . Traps Extracted . | . . . . . . Installed . | . . . . . . Triggered . | . . . . . . Machines | -11 -10 -10 -10 -9 -8 ---------- Run | Scr Mat Min Exi Min Mat Machines Disabled 3 | . 1 1 . . 1 Max in Single Turn 1 | . 1 1 . . 1 Machines Sabotaged . | . . . . . . Garrisons Compromised . | . . . . . . Overloaded Fab Kills . | . . . . . . Fab Network Shutdowns . | . . . . . . Hacking | -11 -10 -10 -10 -9 -8 --------- Run | Scr Mat Min Exi Min Mat Machines Accessed 4 | . 3 . . . 1 Terminals 2 | . 1 . . . 1 Fabricators . | . . . . . . Repair Stations . | . . . . . . Recycling Units 2 | . 2 . . . . Scanalyzers . | . . . . . . Garrison Access . | . . . . . . Total Hacks 6 | . 4 . . . 2 Successful 4 | . 2 . . . 2 Failed 2 | . 2 . . . . Catastrophic 1 | . 1 . . . . Database Lockouts . | . . . . . . Manual 6 | . 4 . . . 2 Terminals 3 | . 1 . . . 2 Fabricators . | . . . . . . Repair Stations . | . . . . . . Recycling Units 3 | . 3 . . . . Scanalyzers . | . . . . . . Garrison Access . | . . . . . . Terminal Hacks 2 | . . . . . 2 Hauler Manifests 1 | . . . . . 1 Zone Layout 1 | . . . . . 1 Fabricator Hacks . | . . . . . . Repair Station Hacks . | . . . . . . Recycling Unit Hacks . | . . . . . . Scanalyzer . | . . . . . . Garrison Access Hacks . | . . . . . . Unauthorized Hacks 5 | . 5 . . . . Terminals . | . . . . . . Fabricators . | . . . . . . Repair Stations . | . . . . . . Recycling Units 2 | . 2 . . . . Tunnel 2 | . 2 . . . . Scanalyzers . | . . . . . . Garrison Access . | . . . . . . Data Cores Recovered 1 | . 1 . . . . Used . | . . . . . . Hacking Detections 2 | . 1 . . . 1 Full Trace Events . | . . . . . . Feedback Events . | . . . . . . Feedback Blocked . | . . . . . . Robot Schematics Acquired . | . . . . . . Robots Built . | . . . . . . Matter . | . . . . . . Time . | . . . . . . Total Robot Build Rating . | . . . . . . Part Schematics Acquired . | . . . . . . Parts Built . | . . . . . . Matter . | . . . . . . Time . | . . . . . . Total Part Build Rating . | . . . . . . Parts Repaired . | . . . . . . Time . | . . . . . . Parts Recycled . | . . . . . . Recycled Matter . | . . . . . . Retrieved Matter . | . . . . . . Retrieved Components . | . . . . . . Parts Scanalyzed . | . . . . . . Part Schematics Acquired . | . . . . . . Parts Damaged . | . . . . . . Bothacking | -11 -10 -10 -10 -9 -8 ------------ Run | Scr Mat Min Exi Min Mat Used RIF Installer . | . . . . . . Robots Hacked . | . . . . . . Non-combat . | . . . . . . Combat . | . . . . . . Robot Hacks Applied . | . . . . . . Relay Couplers Released . | . . . . . . Robots Rewired . | . . . . . . Allies Hacked . | . . . . . . Hacks Repelled . | . . . . . . Allies | -11 -10 -10 -10 -9 -8 -------- Run | Scr Mat Min Exi Min Mat Total Allies . | . . . . . . Largest Group . | . . . . . . Highest-Rated Group . | . . . . . . Highest-Rated Ally . | . . . . . . Total Orders . | . . . . . . Ally Attacks . | . . . . . . Total Damage . | . . . . . . Kills . | . . . . . . Allies Corrupted . | . . . . . . Allies Melted . | . . . . . . Intel | -11 -10 -10 -10 -9 -8 ------- Run | Scr Mat Min Exi Min Mat Robot Analysis Total . | . . . . . . Derelict Logs Recovered 2 | . . 1 . 1 . Drone Launches . | . . . . . . Drone Recoveries . | . . . . . . Exploration | -11 -10 -10 -10 -9 -8 ------------- Run | Scr Mat Min Exi Min Mat Turns Passed 2771 | . 1111 608 214 291 547 Spaces Moved 1222 | 1 462 315 166 198 80 Core 11 | . . . . . 11 Treads 593 | . 462 131 . . . Legs 26 | 1 . . . . 25 Wheels 592 | . . 184 166 198 44 Hover . | . . . . . . Flight . | . . . . . . Fastest Speed 120 | 120 160 120 120 140 160 Average Speed 172 | 120 170 144 126 140 470 Slowest Speed 1850 | 120 180 180 140 140 1850 Overloaded Moves . | . . . . . . Propulsion Burnouts . | . . . . . . Robots Hopped . | . . . . . . Cave-ins Triggered . | . . . . . . Exploration Rate (%) 39 | 2 73 56 49 46 13 Regions Visited 5 Branch Regions 3 Pre-discovered Areas 2 | . 2 . . . . Known Exits Taken . | . . . . . . Unknown Exits Taken 5 | 1 1 1 1 1 . Scrap Searched 1 | . . 1 . . . Spaces Dug 29 | . 10 15 . . 4 Terrain Destroyed 59 | . 24 15 . 15 5 Melee 15 | . 10 5 . . . Projectile . | . . . . . . AOE 44 | . 14 10 . 15 5 Actions | -11 -10 -10 -10 -9 -8 --------- Run | Scr Mat Min Exi Min Mat Total 1587 | . 630 404 169 205 179 Wait 134 | . 54 45 . . 35 Move 1217 | . 461 314 165 197 80 Hop . | . . . . . . Pick Up 14 | . 6 4 2 1 1 Fast Attach 10 | . 3 . . . 7 Attach 11 | . . 2 . 1 8 Detach 1 | . . . . . 1 Swap 32 | . 20 6 2 2 2 Drop 8 | . 8 . . . . Fire 113 | . 53 23 . 4 33 Melee 41 | . 22 7 . . 12 Ram 1 | . . 1 . . . Kick . | . . . . . . Crush 2 | . . 2 . . . Escape Stasis . | . . . . . . Rewire . | . . . . . . Trap 3 | . 3 . . . . Miscellaneous . | . . . . . . Route ------- -11/Scrapyard -10/Materials (discovered 2 exits: [*Mat] / [*Min]) -10/Mines (discovered 3 exits: [*Mat x2] / [*Exi]) -10/Exiles -9/Mines -8/Materials (discovered 1 exit: Fac) History --------- Turn | Location | Event 1 | -11/Scrapyard | Discovered new exit (range 0) 1 | -11/Scrapyard | Entered Materials 166 | -10/Materials | Discovered new exit (range 16) 344 | -10/Materials | Build established: Mutant 825 | -10/Materials | Discovered new exit (range 11) 1112 | -10/Materials | Entered Mines 1114 | -10/Mines | A weapon hastily lodged in a ceiling crevice suddenly fell to the ground 1151 | -10/Mines | Met a Derelict bent on vengeance 1184 | -10/Mines | Discovered new exit (range 7) 1354 | -10/Mines | Learned 2 Materials zone layouts 1373 | -10/Mines | Discovered new exit (range 9) 1382 | -10/Mines | Excavation squad dispatched 1382 | -10/Mines | A large section of the Mines collapsed 1700 | -10/Mines | Core integrity fell below 50% 1715 | -10/Mines | Deemed a non-threat by the Exiles lab entrance 1715 | -10/Mines | Discovered new exit (range 5) 1720 | -10/Mines | Entered Exiles 1750 | -10/Exiles | Met 8R-AWN 1770 | -10/Exiles | Met EX-HEX 1818 | -10/Exiles | Met EX-DEC 1919 | -10/Exiles | Discovered new exit (range 12) 1934 | -10/Exiles | Entered Mines 1940 | -9/Mines | Learned 2 Materials zone layouts 1986 | -9/Mines | Found a damaged Exp. Sensor Array with a note attached 1997 | -9/Mines | Found Prototype Device 2146 | -9/Mines | Build established: Hauler-Mutant 2193 | -9/Mines | Discovered new exit (range 13) 2225 | -9/Mines | Entered Materials 2225 | -8/Materials | Evolved 4 slots: Utility x3, Weapon x1 2226 | -8/Materials | Identified exit to Factory 2226 | -8/Materials | Identified Exp. Sensor Array 2570 | -8/Materials | Lost 4 parts (1p3w) 2602 | -8/Materials | Core integrity fell below 50% 2676 | -8/Materials | Lost 3 parts (2n1w) 2772 | -8/Materials | Self-destructed Last Messages --------------- 02645_ Aluminum Leg destroyed. 02657_ G-47 Trooper destroyed. 02662_ Door malfunctions. 02673_ Destroyed Flight Unit. 02675_ S-10 Pest destroyed. 02677_ U-05 Engineer repairs door. 02695_ Acquired Aluminum Leg. 02697_ Acquired 18 matter. 02705_ Acquired Lgt. Assault Rifle. 02711_ Acquired Lgt. Ion Engine. 02717_ Acquired 17 matter. 02720_ R-06 Scavenger collects Flight Unit. 02721_ Acquired 15 matter. 02726_ R-06 Scavenger collects Lgt. Ion Engine. 02734_ Acquired Welding Torch. 02739_ Acquired 26 matter. 02747_ Acquired 33 matter. 02768_ C-30 ARC bursts open, deploying its payload. 02768_ S-10 Pest unfolds itself. 02770_ K-01 Serf collects debris. Map ----- +----------------------------------------------------+ | ????????????????????????????##########???????????? | | ??????????????????????????? #???????????? | | ?????????????????????????# #???????????? | | ???????????????? #???????# """ == #????????#?## | | ???????????????? #???????# """ == #????????#? | | ???????????????? #???????# """ == !#????#####? | | ???????????????? #???????# #????# ? | | ???????????????? ######??# #????# ###? | | ???????????????? # #########+########### #?#? | | ???????????????? + #?#?# | | ???????????????? # ############?#+ | | ???????????????? # ###+####+###+##### # ? | | ????????????????### ### # # # ? | | ??????????????????# #?# # """ # # ? | | ??????????????????# #?# # """ + + ? | | ??????????????????# #?# "" # """ # # ? | | ?????????????????## ### """ + # # ? | | ????????????????## ## "" # # ####?## | | ???????????????? ## "" % ######## #?????? | | ???????????????? T ## "" ="##?????# #?????? | | ????????????????## ##% ! #??????# #?????? | | ????????????????#########+###+########## ####?## | | ???????????????? #??# ! ? | | ???????????????? #??# %% [ ? | | ???????????????? #??# ######### [ ? | | ????????????????######??#@ #???????# ??? | | ????????????????######### ######### ??? | | ??????????/ ??? | | ??????????# ??? | | ??????????# [[! ??? | | ???????????### [[! ??? | | ?????????????# [!! """ ??? | | ?????????????# """ #######??? | | ?????????????# """ %!! #??# ??? | | ?????????????# !! w ""? !! ?????????? | | ?????????????# !! ss ""??!! ?????????? | | ?????????????# ??? ??????????? | | ?????????????? ????????????????? | | ?????????????? s|%k ????????????????? | | ???????????????? s#####???????????????? | | ?????????????????? #???????????????????? | | ????????????????????? #???????????????????? | | ??????????????????????? ?????????????????????? | | ?????????????????????????????????????????????????? | | ?????????????????????????????????????????????????? | | ?????????????????????????????????????????????????? | | ?????????????????????????????????????????????????? | | ?????????????????????????????????????????????????? | | ?????????????????????????????????????????????????? | | ?????????????????????????????????????????????????? | +----------------------------------------------------+ Best States ------------- Heat Dissipation 31 Energy Generation 10 Energy Capacity 250 Matter Stores 300 Matter Capacity 300 Sight Range 16 Terrain Scan Density 10 Evasion (%) 40 Recoil Reduction 2 Item Schematics ----------------- None Robot Schematics ------------------ None Fabricated ------------ Nothing Alien Tech Used ----------------- None Achievements -------------- None Challenges ------------ None Game ------ Seed ZioniteZioniteStabilizer Manual? 0 Play Time 00:18:26 Cumulative 156.2 hours Start 2019.11.02 @ 18:27:19 End 2019.11.02 @ 18:48:00 Sessions 3 Manual Loads 0 Difficulty Rogue Special Mode None Game No. 165 Rogue 165 Adventurer 0 Explorer 0 Win Type - Total 2 Types 1/0/0/1/0/0/0 Lore% 63 Gallery% 79 Achievement% 62 Wizard Run 0 Options --------- ASCII 0 Keyboard 1 Movement Numpad Keybinds 0 Fullscreen 2 Font 18/SmallcapsGlow Map View 76x50 Tactical HUD 1 Map Filters NONE Filters NONE Steam 1 RUN: 3fb77fcc-cc5b-4277-8b87-45ce4b8ba35c